Workbook

Sheet PrbaSigno01
A1: Te agradó el queso?
C2: Nro de "+" | D2: =COUNTIF(A3:A22,E2) -> 10 | E2: + | F2: Les agradó
A3: + | C3: Nro de "-" | D3: =COUNTIF(A3:A22,E3) -> 8 | E3: - | F3: No les agradó
C4: Nro de nulos
A5: -
A6: + | C6: n = | D6: =SUM(D2:D3) -> 18
A7: - | C7: k = | D7: =MIN(D2:D3) -> 8
A8: +
A9: - | C9: P(X ≤ k) = | D9: =BINOMDIST(D7,D6,0.5,1) -> 0.4072647095
A10: + | D10: =IF(D9<0.05,"Se rechaza la hipótesis nula","No se rechaza la hipótesis nula") -> No se rechaza la hipótesis nula
A11: + | D11: =IF(D2>D3,"A más presentes les agradó el producto","A menos presentes les agradó el producto") -> A más presentes les agradó el producto
A12: -
A13: -
A14: +
A15: +
A16: -
A17: -
A19: +
A20: +
A21: -
A22: +

Sheet PrbaSigno02
A1: Nuevo | B1: Antiguo | C1: Difer
A2: 2.3 | B2: 2.2 | C2: =A2-B2 -> 0.1
A3: 2.6 | B3: 2.5 | C3: =A3-B3 -> 0.1 | E3: <0 | F3: Negativos | G3: =COUNTIF(C2:C18,E3) -> 3 | J3: Nota:
A4: 3.5 | B4: 3.4 | C4: 0.1 | E4: >0 | F4: Positivos | G4: =COUNTIF(C2:C18,E4) -> 11 | J4: Si la diferencia (Nuevo - Antiguo) es positiva, no reduce
A5: 2.9 | B5: 2.9 | C5: 0 | F5: Nulos | G5: =COUNT(A2:A18)-G3-G4 -> 3
A6: 2.5 | B6: 2.4 | C6: 0.1 | F6: n = | G6: =G4+G3 -> 14
A7: 3.3 | B7: 3.1 | C7: 0.2 | F7: k = | G7: =MIN(G3:G4) -> 3
A8: 1.7 | B8: 1.8 | C8: -0.1 | F8: P( X ≤ k ) = | G8: =BINOMDIST(G7,G6,0.5,1) -> 0.02868652344
A9: 2.8 | B9: 2.8 | C9: 0
A10: 2.9 | B10: 2.9 | C10: 0 | G10: =IF(AND(G8<0.05,G4>G3),"No reduce el tiempo","Sí logra reducir el tiempo") -> No reduce el tiempo
A11: 3.1 | B11: 3.2 | C11: -0.1
A12: 2.4 | B12: 2.3 | C12: 0.1
A13: 3.2 | B13: 3.3 | C13: -0.1
A14: 2.5 | B14: 2.4 | C14: 0.1
A15: 2.6 | B15: 2.5 | C15: 0.1
A16: 3.3 | B16: 3.2 | C16: 0.1
A17: 2.9 | B17: 2.8 | C17: 0.1
A18: 2.2 | B18: 2.1 | C18: 0.1

Sheet PrbaSigno03
A1: Antes | B1: Después | C1: Difer
A2: 12 | B2: 13 | C2: =B2-A2 -> 1 | E2: Nro de | F2: >0 | G2: =COUNTIF(C2:C11,F2) -> 8 | H2: El comercial es efectivo
A3: 8 | B3: 12 | C3: =B3-A3 -> 4 | E3: Nro de | F3: <0 | G3: =COUNTIF(C2:C11,F3) -> 2 | H3: El comercial no es efectivo
A4: 9 | B4: 15 | C4: 6 | E4: Nro de | F4: =0 -> 0 | G4: =COUNTIF(C2:C11,F4) -> 0
A5: 11 | B5: 12 | C5: 1 | E5: n = | G5: =SUM(G2:G3) -> 10
A6: 13 | B6: 10 | C6: -3 | E6: Sea | F6: X= | G6: =MIN(G2:G3) -> 2
A7: 15 | B7: 11 | C7: -4
A8: 10 | B8: 12 | C8: 2
A9: 6 | B9: 8 | C9: 2 | E9: Probab | G9: =BINOMDIST(G6,G5,0.5,1) -> 0.0546875
A10: 7 | B10: 14 | C10: 7 | G10: =IF(G9<0.05,"Se rechaza la hipótesis nula","No se rechaza la hipótesis nula") -> No se rechaza la hipótesis nula
A11: 8 | B11: 16 | C11: 8 | G11: =IF(G2>G3,"Más calificaciones fueron positivas","Menos calficaciones fueron positivas") -> Más calificaciones fueron positivas
A14: Un grupo de 10 consumidores, elegidos al azar, fueron requeridos para manifestar su grado de satisfacción respecto a un tipo de jabón,
A15: en una puntuación de 0 a 20. Después de solicitarles que vean un video sobre el mismo producto, se les pidió que volvieran a calificarlo.
A16: Los resultados se muestran en la siguiente tabla:
A17: El comercial tuvo algún efecto significativo sobre la satisfacción por el producto?. Use nivel de significación del 5%.

Sheet DatosPareados
A1: Antes | B1: Después | C1: Diferencia
A2: 217 | B2: 209 | C2: =A2-B2 -> 8
A3: 252 | B3: 241 | C3: =A3-B3 -> 11 | E3: Nro de | F3: >0 | G3: =COUNTIF(C2:C7,F3) -> 4
A4: 229 | B4: 230 | C4: -1 | E4: Nro de | F4: <0 | G4: =COUNTIF(C2:C7,F4) -> 2
A5: 200 | B5: 208 | C5: -8 | E5: Nro de | F5: =0 -> 0 | G5: =COUNTIF(C2:C7,F5) -> 0
A6: 209 | B6: 206 | C6: 3 | E6: n = | G6: =SUM(G3:G4) -> 6
A7: 213 | B7: 211 | C7: 2 | E7: Sea | F7: X= | G7: =MIN(G3:G4) -> 2
E9: Probab X < | F9: =G7 -> 2 | G9: =BINOMDIST(F9,G6,0.5,1) -> 0.34375
B10: Reduce si >0
B11: No reduce si <=0 | G11: =IF(G9<0.05,"Sí logra reducir el nivel de colesterol","No reduce el nivel de colesterol") -> No reduce el nivel de colesterol
B13: Ho: No reduce
A16: A un conjunto de 6 pacientes se les evaluó en nivel de colesterol que tenían en la sangre.
A17: Después de aplicarles un nuevo medicamento se les volvió a medir el nivel de colesterol.
A18: Los datos se meustran en las columnas A y B de esta hoja. A un nivel de significación del 5%,
A19: se puede afirmar que el medicamento reduce el colesterol en la sangre?

Sheet RangWil01
A1: Paciente | B1: Método A | C1: Método B | D1: Diff | E1: Rango | F1: Rango con signo | H1: Paciente | I1: Diff | J1: Asignar rango
A2: 1 | B2: 87 | C2: 76 | D2: =B2-C2 -> 11 | E2: =VLOOKUP(A2,$H$2:$J$9,3,0) -> 5 | F2: =IF(D2>0,E2,-1*E2) -> 5 | H2: 3 | I2: =ABS(D2) -> 11 | J2: 8
A3: 2 | B3: 66 | C3: 56 | D3: =B3-C3 -> 10 | E3: =VLOOKUP(A3,$H$2:$J$9,3,0) -> 4 | F3: =IF(D3>0,E3,-1*E3) -> 4 | H3: 6 | I3: 10 | J3: 7
A4: 3 | B4: 75 | C4: 76 | D4: -1 | E4: 8 | F4: -8 | H4: 5 | I4: 1 | J4: 1
A5: 4 | B5: 95 | C5: 86 | D5: 9 | E5: 2 | F5: 2 | H5: 7 | I5: 9 | J5: 6
A6: 5 | B6: 73 | C6: 76 | D6: -3 | E6: 1 | F6: -1 | H6: 8 | I6: 3 | J6: 3
A7: 6 | B7: 88 | C7: 86 | D7: 2 | E7: 7 | F7: 7 | H7: 4 | I7: 2 | J7: 2
A8: 7 | B8: 69 | C8: 64 | D8: 5 | E8: 6 | F8: 6 | H8: 2 | I8: 5 | J8: 4
A9: 8 | B9: 77 | C9: 70 | D9: 7 | E9: 3 | F9: 3 | H9: 1 | I9: 7 | J9: 5
F11: =SUMIF(F2:F9,G11) -> 27 | G11: >0
F12: =SUMIF(F2:F9,G12) -> -9 | G12: <0
E13: Estadístico T = | F13: =MIN(ABS(F11),ABS(F12)) -> 9
E14: Tamaño de muestra = | F14: =COUNTIF(F2:F9,"<>0") -> 8
E15: Media de T = | F15: =1/4*F14*(F14+1) -> 18
E16: Desviación de T = | F16: =SQRT(1/24*F14*(F14+1)*(2*F14+1)) -> 7.141428429
E17: Estadístico calculado = Tc = | F17: =(F13-F15)/F16 -> -1.260252076
E18: Valor crítico = | F18: 1.96
F19: =IF(ABS(F17)>F18,"Se rechaza Ho","No se rechaza Ho") -> No se rechaza Ho

Sheet RangWil02
A1: Identif | B1: Método 1 | C1: Método 2 | D1: Difer | F1: Rango | G1: Rango con signo | K1: Identif | L1: DifAbs | M1: Asingar rango
A2: 1 | B2: 10.2 | C2: 9.5 | D2: =B2-C2 -> 0.7 | F2: =VLOOKUP(A2,$K$2:$M$12,3,0) -> 8 | G2: =IF(D2>0,F2,-1*F2) -> 8 | K2: 8 | L2: 0
A3: 2 | B3: 9.6 | C3: 9.8 | D3: -0.2 | F3: 2 | G3: -2 | K3: 7 | L3: 0.1 | M3: 1
A4: 3 | B4: 9.2 | C4: 8.8 | D4: 0.4 | F4: 3.5 | G4: 3.5 | K4: 2 | L4: 0.2 | M4: 2
A5: 4 | B5: 10.6 | C5: 10.1 | D5: 0.5 | F5: 5.5 | G5: 5.5 | K5: 3 | L5: 0.4 | M5: 3.5
A6: 5 | B6: 9.9 | C6: 10.3 | D6: -0.4 | F6: 3.5 | G6: -3.5 | K6: 5 | L6: 0.4 | M6: 3.5
A7: 6 | B7: 10.2 | C7: 9.3 | D7: 0.9 | F7: 10 | G7: 10 | K7: 4 | L7: 0.5 | M7: 5.5
A8: 7 | B8: 10.6 | C8: 10.5 | D8: 0.1 | F8: 1 | G8: 1 | K8: 10 | L8: 0.5 | M8: 5.5
A9: 8 | B9: 10 | C9: 10 | D9: 0 | F9: 0 | G9: 0 | K9: 9 | L9: 0.6 | M9: 7
A10: 9 | B10: 11.2 | C10: 10.6 | D10: 0.6 | F10: 7 | G10: 7 | K10: 1 | L10: 0.7 | M10: 8
A11: 10 | B11: 10.7 | C11: 10.2 | D11: 0.5 | F11: 5.5 | G11: 5.5 | K11: 11 | L11: 0.8 | M11: 9
A12: 11 | B12: 10.6 | C12: 9.8 | D12: 0.8 | F12: 9 | G12: 9 | K12: 6 | L12: 0.9 | M12: 10
G14: Suma de + | H14: =SUMIF(D2:D12,I14,G2:G12)*(1) -> 49.5 | I14: >0
G15: Suma de - | H15: =SUMIF(D2:D12,I15,F2:F12)*(-1) -> -5.5 | I15: <0
G16: Estadístico T = | H16: =MIN(ABS(H14),ABS(H15)) -> 5.5
G18: Prueba T
G19: Tamaño de la muestra = | H19: =COUNTIF(G2:G12,"<>0") -> 10
G20: Media de T = | H20: =1/4*H19*(H19+1) -> 27.5
G21: Desviación de T = | H21: =SQRT(1/24*H19*(H19+1)*(2*H19+1)) -> 9.810708435
G22: Estadístico de la prueba: | H22: =(H16-H20)/H21 -> -2.242447642
G23: Valor crítico = | H23: 1.96
H24: =IF(ABS(H22)>H23,"Se rechaza la hipótesis nula","No se rechaza la hipótesis nula") -> Se rechaza la hipótesis nula

Sheet ManWitWil01
A1: Diurno | B1: Nocturno | D1: NroComp | E1: Turno | F1: Rango
A2: 80 | B2: 50 | C2: 1 | D2: 30 | E2: N | F2: 1
A3: 40 | B3: 60 | C3: 2 | D3: 35 | E3: N | F3: 2 | K3: Turno | L3: Suma Rango
A4: 40 | B4: 48 | C4: 3 | D4: 40 | E4: D | F4: 4.5 | K4: D | L4: =SUMIF(E2:E39,K4,F2:F39) -> 500.5
A5: 60 | B5: 60 | C5: 4 | D5: 40 | E5: D | F5: 4.5 | K5: N | L5: =SUMIF(E2:E39,K5,F2:F39) -> 240.5
A6: 55 | B6: 65 | C6: 5 | D6: 40 | E6: N | F6: 4.5
A7: 65 | B7: 78 | C7: 6 | D7: 40 | E7: N | F7: 4.5 | J7: Tamaño: | K7: D | L7: =COUNTIF(E2:E39,K7) -> 22
A8: 75 | B8: 85 | C8: 7 | D8: 48 | E8: N | F8: 7 | K8: N | L8: =COUNTIF(E2:E39,K8) -> 16
A9: 85 | B9: 83 | C9: 8 | D9: 50 | E9: N | F9: 8
A10: 84 | B10: 40 | C10: 9 | D10: 55 | E10: D | F10: 9
A11: 78 | B11: 35 | C11: 10 | D11: 58 | E11: D | F11: 10 | J11: Cálculo de U(N) = | L11: =L7*L8+L8/2*(L8+1)-L5 -> 247.5
A12: 95 | B12: 70 | C12: 11 | D12: 60 | E12: D | F12: 12 | J12: Cálculo de U(D) = | L12: =L7*L8+L7/2*(L7+1)-L4 -> 104.5
A13: 92 | B13: 78 | C13: 12 | D13: 60 | E13: N | F13: 12
A14: 85 | B14: 80 | C14: 13 | D14: 60 | E14: N | F14: 12 | J14: Determinación del estadístico U = | L14: =MIN(L11:L12) -> 104.5
A15: 90 | B15: 30 | C15: 14 | D15: 65 | E15: D | F15: 15
A16: 79 | B16: 40 | C16: 15 | D16: 65 | E16: D | F16: 15
A17: 95 | B17: 90 | C17: 16 | D17: 65 | E17: N | F17: 15 | J17: Media de U = | L17: =L7*L8/2 -> 176
A18: 58 | C18: 17 | D18: 70 | E18: D | F18: 17.5 | J18: Varianza de U = | L18: =1/12*L7*L8*(L7+L8+1) -> 1144
A19: 65 | C19: 18 | D19: 70 | E19: N | F19: 17.5 | J19: Desviación de U = | L19: =SQRT(L18) -> 33.82306905
A20: 90 | C20: 19 | D20: 75 | E20: D | F20: 19
A21: 95 | C21: 20 | D21: 78 | E21: D | F21: 21 | J21: Cálculo del estadistico de la prueba = | L21: =(L14-L17)/L19 -> -2.113941816
A22: 70 | C22: 21 | D22: 78 | E22: N | F22: 21
A23: 80 | C23: 22 | D23: 78 | E23: N | F23: 21 | J23: Valor crítico Z = | L23: 1.96
C24: 23 | D24: 79 | E24: D | F24: 23 | L24: =IF(ABS(L21)>L23,"Rechazar Ho","No rechazar Ho") -> Rechazar Ho
C25: 24 | D25: 80 | E25: D | F25: 25 | L25: El rendimiento del turno diurno es mejor que los del turno nocturno
C26: 25 | D26: 80 | E26: D | F26: 25
C27: 26 | D27: 80 | E27: N | F27: 25
C28: 27 | D28: 83 | E28: N | F28: 27
C29: 28 | D29: 84 | E29: D | F29: 28
C30: 29 | D30: 85 | E30: D | F30: 30
C31: 30 | D31: 85 | E31: D | F31: 30
C32: 31 | D32: 85 | E32: N | F32: 30
C33: 32 | D33: 90 | E33: D | F33: 33
C34: 33 | D34: 90 | E34: D | F34: 33
C35: 34 | D35: 90 | E35: N | F35: 33
C36: 35 | D36: 92 | E36: D | F36: 35
C37: 36 | D37: 95 | E37: D | F37: 37
C38: 37 | D38: 95 | E38: D | F38: 37
C39: 38 | D39: 95 | E39: D | F39: 37

Sheet ManWitWil02
A1: Gas 97 | B1: Gas 98 | D1: Nro | E1: Rendim | F1: Gas | G1: Rango
A2: 20.2 | B2: 21.1 | D2: 1 | E2: 16.9 | F2: G98 | G2: 1 | J2: Estadísticas
A3: 21 | B3: 19.7 | D3: 2 | E3: 17.3 | F3: G98 | G3: 2 | K3: Suma Rango
A4: 20.5 | B4: 18.5 | D4: 3 | E4: 17.4 | F4: G98 | G4: 3 | J4: G97 | K4: =SUMIF(F2:F25,J4,G2:G25) -> 185.5
A5: 19.8 | B5: 17.4 | D5: 4 | E5: 17.6 | F5: G98 | G5: 4 | J5: G98 | K5: =SUMIF(F3:F26,J5,G3:G26) -> 113.5
A6: 19.8 | B6: 17.6 | D6: 5 | E6: 17.8 | F6: G98 | G6: 5
A7: 19.2 | B7: 21.3 | D7: 6 | E7: 18 | F7: G98 | G7: 6 | J7: Tamaño de muestra:
A8: 20.5 | B8: 20.1 | D8: 7 | E8: 18.5 | F8: G98 | G8: 7 | J8: G97 | K8: =COUNTIF(F2:F25,J8) -> 12
A9: 20.6 | B9: 18 | D9: 8 | E9: 18.6 | F9: G97 | G9: 8 | J9: G98 | K9: =COUNTIF(F2:F25,J9) -> 12
A10: 19.9 | B10: 16.9 | D10: 9 | E10: 18.8 | F10: G97 | G10: 9.5
A11: 18.6 | B11: 17.8 | D11: 10 | E11: 18.8 | F11: G98 | G11: 9.5 | J11: Cálculo de los estadísticos por muestra:
A12: 18.9 | B12: 18.8 | D12: 11 | E12: 18.9 | F12: G97 | G12: 11 | J12: Gas 97: U1 | K12: =K8*K9+K8/2*(K8+1)-K4 -> 36.5
A13: 18.8 | B13: 17.3 | D13: 12 | E13: 19.2 | F13: G97 | G13: 12 | J13: Gas 98: U2 | K13: =K8*K9+K9/2*(K9+1)-K5 -> 108.5
D14: 13 | E14: 19.7 | F14: G98 | G14: 13
D15: 14 | E15: 19.8 | F15: G97 | G15: 14.5 | J15: Estadístico T = | K15: =MIN(K12:K13) -> 36.5
D16: 15 | E16: 19.8 | F16: G97 | G16: 14.5
D17: 16 | E17: 19.9 | F17: G97 | G17: 16 | J17: Media de T = | K17: =K8*K9/2 -> 72
D18: 17 | E18: 20.1 | F18: G98 | G18: 17 | J18: Varianza de T = | K18: =1/12*K8*K9*(K8+K9+1) -> 300
D19: 18 | E19: 20.2 | F19: G97 | G19: 18
D20: 19 | E20: 20.5 | F20: G97 | G20: 19.5 | J20: Estadístico de la prueba = Tc = | K20: =(K15-K17)/SQRT(K18) -> -2.049593456
D21: 20 | E21: 20.5 | F21: G97 | G21: 19.5
D22: 21 | E22: 20.6 | F22: G97 | G22: 21 | J22: Valor Crítico = Zα= | K22: 1.96
D23: 22 | E23: 21 | F23: G97 | G23: 22 | K23: =IF(ABS(K20)>K22,"Rechazar la hipótesis nula", "No rechazar la hipótesis nula") -> Rechazar la hipótesis nula
D24: 23 | E24: 21.1 | F24: G98 | G24: 23
D25: 24 | E25: 21.3 | F25: G98 | G25: 24

Sheet KruskWallis01
A1: A | B1: B | C1: C | E1: Valor | F1: Método | G1: Rango
A2: 25 | B2: 60 | C2: 50 | E2: 15 | F2: B | G2: 1
A3: 70 | B3: 20 | C3: 70 | E3: 20 | F3: B | G3: 2 | M3: Tamaño de las muestras | P3: Suma de los rangos: | T3: R²i | U3: R²i / ni
A4: 60 | B4: 30 | C4: 60 | E4: 25 | F4: A | G4: 3 | L4: n1 = | M4: =COUNTIF($F$2:$F$21,Q4) -> 7 | P4: Método | Q4: A | R4: =SUMIF(F2:F21,Q4,G2:G21) -> 95 | T4: =R4^2 -> 9025 | U4: =T4/M4 -> 1289.285714
A5: 85 | B5: 15 | C5: 80 | E5: 30 | F5: B | G5: 4 | L5: n2 = | M5: =COUNTIF($F$2:$F$21,Q5) -> 6 | P5: Método | Q5: B | R5: =SUMIF(F3:F22,Q5,G3:G22) -> 26 | T5: =R5^2 -> 676 | U5: =T5/M5 -> 112.6666667
A6: 95 | B6: 40 | C6: 90 | E6: 35 | F6: B | G6: 5 | L6: n3 = | M6: =COUNTIF($F$2:$F$21,Q6) -> 7 | P6: Método | Q6: C | R6: =SUMIF(F4:F23,Q6,G4:G23) -> 88 | T6: 7744 | U6: 1106.285714
A7: 90 | B7: 35 | C7: 70 | E7: 40 | F7: B | G7: 6 | L7: n = | M7: =SUM(M4:M6) -> 20
A8: 80 | C8: 75 | E8: 50 | F8: C | G8: 7
E9: 60 | F9: A | G9: 9 | M9: Cálculo del estadísitco H: | N9: =12/(M7*(M7+1))*SUM(U4:U6)-3*(M7+1) -> 8.663945578
E10: 60 | F10: B | G10: 9
E11: 60 | F11: C | G11: 9 | M11: Valor crítico c² (2) = | N11: 5.99146
E12: 70 | F12: A | G12: 12
E13: 70 | F13: C | G13: 12 | M13: Criterio de decisión: | N13: =IF(N9>N11,"Se rechaza Ho","No se rechaza Ho") -> Se rechaza Ho
E14: 70 | F14: C | G14: 12
E15: 75 | F15: C | G15: 14
E16: 80 | F16: A | G16: 15.5
E17: 80 | F17: C | G17: 15.5
E18: 85 | F18: A | G18: 17
E19: 90 | F19: A | G19: 18.5
E20: 90 | F20: C | G20: 18.5
E21: 95 | F21: A | G21: 20

Sheet KruskWallis02
A1: Método 1 | B1: Método 2 | C1: Método 3 | E1: Valor | F1: Método | G1: Rangos
A2: 9.4 | B2: 8.5 | C2: 8.9 | E2: 6.1 | F2: 2 | G2: 1
A3: 8.7 | B3: 8.2 | C3: 6.7 | E3: 6.7 | F3: 3 | G3: 2 | L3: Tamaño de las muestras | O3: Suma de los rangos: | S3: R²i | T3: R²i / ni
A4: 9.1 | B4: 7.9 | C4: 7.2 | E4: 6.9 | F4: 3 | G4: 3 | K4: n1 = | L4: =COUNTIF($F$2:$F$19,P4) -> 6 | O4: Método | P4: 1 | Q4: =SUMIF($F$2:$F$19,P4,$G$2:$G$19) -> 84 | S4: =Q4^2 -> 7056 | T4: =S4/L4 -> 1176
A5: 7.4 | B5: 8.4 | C5: 7.6 | E5: 7.2 | F5: 2 | G5: 4.5 | K5: n2 = | L5: =COUNTIF($F$2:$F$19,P5) -> 7 | O5: Método | P5: 2 | Q5: =SUMIF($F$2:$F$19,P5,$G$2:$G$19) -> 55.5 | S5: =Q5^2 -> 3080.25 | T5: =S5/L5 -> 440.0357143
A6: 8.6 | B6: 6.1 | C6: 6.9 | E6: 7.2 | F6: 3 | G6: 4.5 | K6: n3 = | L6: =COUNTIF($F$2:$F$19,P6) -> 5 | O6: Método | P6: 3 | Q6: =SUMIF($F$2:$F$19,P6,$G$2:$G$19) -> 31.5 | S6: 992.25 | T6: 198.45
A7: 9.7 | B7: 7.2 | E7: 7.4 | F7: 1 | G7: 6 | K7: n = | L7: =SUM(L4:L6) -> 18
B8: 8 | E8: 7.6 | F8: 3 | G8: 7
E9: 7.9 | F9: 2 | G9: 8 | L9: Cálculo del estadísitco H: | M9: =12/(L7*(L7+1))*SUM(T4:T6)-3*(L7+1) -> 6.666165414
E10: 8 | F10: 2 | G10: 9
E11: 8.2 | F11: 2 | G11: 10 | L11: Valor crítico c² (2) = | M11: 5.99146
E12: 8.4 | F12: 2 | G12: 11
E13: 8.5 | F13: 2 | G13: 12 | L13: Criterio de decisión: | M13: =IF(M9>M11,"Se rechaza Ho","No se rechaza Ho") -> Se rechaza Ho
E14: 8.6 | F14: 1 | G14: 13
E15: 8.7 | F15: 1 | G15: 14
E16: 8.9 | F16: 3 | G16: 15
E17: 9.1 | F17: 1 | G17: 16
E18: 9.4 | F18: 1 | G18: 17
E19: 9.7 | F19: 1 | G19: 18

Sheet CxRSpearman01
A1: Frec Spot | B1: Nro bebidas | E1: X | F1: Rx | G1: Y | H1: Ry | I1: Rx - Ry | J1: (Rx - Ry)²
A2: 4 | B2: 12 | E2: 4 | F2: 5 | G2: 12 | H2: 7 | I2: =F2-H2 -> -2 | J2: =I2^2 -> 4
A3: 9 | B3: 14 | E3: 9 | F3: 8 | G3: 14 | H3: 8 | I3: =F3-H3 -> 0 | J3: =I3^2 -> 0
A4: 3 | B4: 7 | E4: 3 | F4: 4 | G4: 7 | H4: 5 | I4: -1 | J4: 1
A5: 0 | B5: 6 | E5: 0 | F5: 1 | G5: 6 | H5: 3.5 | I5: -2.5 | J5: 6.25
A6: 1 | B6: 3 | E6: 1 | F6: 2 | G6: 3 | H6: 1 | I6: 1 | J6: 1
A7: 6 | B7: 5 | E7: 6 | F7: 7 | G7: 5 | H7: 2 | I7: 5 | J7: 25
A8: 2 | B8: 6 | E8: 2 | F8: 3 | G8: 6 | H8: 3.5 | I8: -0.5 | J8: 0.25
A9: 5 | B9: 10 | E9: 5 | F9: 6 | G9: 10 | H9: 6 | I9: 0 | J9: 0
I11: Tamaño de la muestra = | J11: =COUNT(E2:E9) -> 8
I13: Valor de Rs = | J13: =1-6*SUM(J2:J9)/(J11*(J11^2-1)) -> 0.5535714286
I15: Estadístico de la prueba = Tc = | J15: =J13*SQRT(J11-2)/SQRT(1-J13^2) -> 1.628199767
I17: Valor crítico t (n-2) = | J17: =TINV(0.05,J11-2) -> 2.446911846
I19: Decisión: | J19: =IF(J15>J17,"Se rechaza la hipótesis nula","No se rechaza la hipótesis nula") -> No se rechaza la hipótesis nula
